Cogmind - Beta 14 @@@ ROGUE MODE // 2024.09.04 @ 15:45:41 Player: Waste Result: Destroyed by S-10 Pest with Light Assault Rifle Performance ------------- Evolutions (0) 0 Regions Visited (4) 800 Robots Destroyed (18) 90 Value Destroyed (469) 469 Prototype IDs (23) 460 Alien Tech Used (0) 0 Bonus (300) 300 TOTAL SCORE: 2119 Bonus ------- Aligned with FarCom 300 Cogmind --------- Core Integrity 0/250 Matter 300/300 Energy 250/250 System Corruption 0% Temperature Cool (0) Movement Walking (200) Ox1 Location -9/Mines Parts ------- > --- POWER (1) -------- Ion Engine > --- PROPULSION (2) --- Carbon-fiber Leg Makeshift Leg > --- UTILITY (2) ------ High-capacity Storage Unit Light Armor Plating > --- WEAPON (2) ------- Light Assault Rifle Light Assault Rifle > --- INVENTORY (20) --- Light Treads Light Treads Aluminum Leg Aluminum Leg Potential Leg Potential Leg Wheel Wheel Small Storage Unit Large Storage Unit Latent Energy Streamer Light Assault Rifle XL Autogun Array Improved Light Cannon Grenade Launcher Hammer Spear Peak State ------------ > --- POWER ------------ Ion Engine > --- PROPULSION ------- Carbon-fiber Leg Makeshift Leg > --- UTILITY ---------- High-capacity Storage Unit Light Armor Plating > --- WEAPON ----------- Light Assault Rifle Light Assault Rifle > --- INVENTORY -------- Light Treads Light Treads Aluminum Leg Aluminum Leg Potential Leg Potential Leg Wheel Wheel Small Storage Unit Large Storage Unit Latent Energy Streamer Light Assault Rifle XL Autogun Array Improved Light Cannon Grenade Launcher Hammer Spear [Rating: 20] Favorites ----------- Power Ion Engine Engine Ion Engine Propulsion Aluminum Leg Leg Aluminum Leg Utility Large Storage Unit Device Heat Sink Storage Large Storage Unit Protection Light Armor Plating Weapon Light Assault Rifle Energy Gun Small Laser Ballistic Gun Light Assault Rifle Build | -11 -10 -10 -10 -9 ------- Run | Yrd Mat Min Exi Min Slots Evolved . | . . . . . Power . | . . . . . Propulsion . | . . . . . Utility . | . . . . . Weapon . | . . . . . Parts Attached 13 | . 7 6 . . Power 1 | . 1 . . . Engine 1 | . 1 . . . Core . | . . . . . Reactor . | . . . . . Propulsion 6 | . 3 3 . . Treads . | . . . . . Leg 6 | . 3 3 . . Wheel . | . . . . . Hover . | . . . . . Flight . | . . . . . Utility 4 | . 2 2 . . Device 1 | . 1 . . . Storage 2 | . 1 1 . . Processor . | . . . . . Hackware . | . . . . . Protection 1 | . . 1 . . Artifact . | . . . . . Weapon 2 | . 1 1 . . Energy Gun . | . . . . . Energy Cannon . | . . . . . Ballistic Gun 2 | . 1 1 . . Ballistic Cannon . | . . . . . Launcher . | . . . . . Special Weapon . | . . . . . Impact Weapon . | . . . . . Slashing Weapon . | . . . . . Piercing Weapon . | . . . . . Special Melee Weapon . | . . . . . Unidentified Prototypes . | . . . . . Parts Lost 6 | . 4 2 . . Power 1 | . 1 . . . Propulsion 2 | . 2 . . . Utility 1 | . . 1 . . Weapon 2 | . 1 1 . . Highest Loss Streak 3 | . 3 1 . . To Critical Strikes . | . . . . . Average Slot Usage (%) 97 | . 93 99 100 100 Engine 13 | . 13 14 14 14 Leg 27 | . 27 28 28 28 Device 4 | . 9 3 . . Storage 14 | . 14 14 14 14 Protection 6 | . . 10 14 14 Energy Gun 5 | . 14 . . . Ballistic Gun 22 | . 13 27 28 28 Peak Build Rating 20 | . 8 13 19 20 Average Rating 10 | . 6 11 15 19 On Entrance 10 | 6 6 7 13 19 Naked Turns . | . . . . . Heaviest Build 50 | 12 28 50 50 50 Greatest Support 35 | 20 20 35 35 35 Greatest Overweight (x) 2 | . 2 1 1 1 Average Overweight (x) . | . . . 1 1 Largest Inventory Capacity 20 | . 15 20 20 20 Average Capacity 17 | . 14 17 20 20 Most Carried 20 | . 10 11 18 20 Average Carried 10 | . 8 9 14 18 Final Capacity 20 | 8 15 20 20 20 Final Carried 20 | 6 7 11 18 20 Class Distribution -------------------- 100% | Mutant Dominant Class ---------------- Mutant | -10/Materials Mutant | -10/Mines Mutant | -10/Exiles Mutant | -9/Mines Resources | -11 -10 -10 -10 -9 ----------- Run | Yrd Mat Min Exi Min Matter Collected 362 | 200 88 74 . . Remotely . | . . . . . Salvage Created 535 | . 419 116 . . Parts 31 | . 23 8 . . Haulers Intercepted . | . . . . . Recyclers Shooed 1 | . 1 . . . Parts Field Recycled . | . . . . . Retrieved Matter . | . . . . . Parts Self-Destructed . | . . . . . Prevented . | . . . . . Kills | -11 -10 -10 -10 -9 ------- Run | Yrd Mat Min Exi Min Combat Hostiles Destroyed 18 | . 14 4 . . Guns 18 | . 14 4 . . Classes Destroyed 2 | . 2 . . . Swarmer 8 | . 6 2 . . Grunt 10 | . 8 2 . . Best Kill Streak 3 | . 3 2 . . Combat Bots Only 3 | . 3 2 . . Max Kills in Single Turn 1 | . 1 1 . . Gunslinging . | . . . . . Exploded . | . . . . . Melee . | . . . . . Uniques/NPCs Destroyed . | . . . . . Combat | -11 -10 -10 -10 -9 -------- Run | Yrd Mat Min Exi Min Hostile Shots Fired 107 | . 79 28 . . Missed 17 | . 13 4 . . Damage Taken 956 | . 743 197 . 16 Core 254 | . 195 49 . 10 Absorbed by Shields . | . . . . . Core Remaining (%) 100 | 100 . . . . Volleys Fired 68 | . 53 15 . . Largest 2 | . 2 2 . . Hottest 60 | . 60 60 . . Shots Fired 125 | . 104 21 . . Gun 125 | . 104 21 . . Cannon . | . . . . . Launcher . | . . . . . Special . | . . . . . Kinetic 73 | . 53 20 . . Thermal 52 | . 51 1 . . Explosive . | . . . . . Electromagnetic . | . . . . . Robot Hit Streak 12 | . 9 12 . . Robot Miss Streak 4 | . 4 2 . . Penetration Max . | . . . . . Secondary Targets 1 | . 1 . . . Max Gunslinging Chain 1 | . 1 . . . Shots Hit Robots 85 | . 69 16 . . Core Hits 40 | . 32 8 . . Critical Kills . | . . . . . Critical Parts Destroyed . | . . . . . Critical Strikes . | . . . . . Melee Attacks . | . . . . . Impact . | . . . . . Slashing . | . . . . . Piercing . | . . . . . Sneak Attacks . | . . . . . Combat Hostiles . | . . . . . Follow-up Attacks . | . . . . . Damage Inflicted 874 | . 734 140 . . Guns 835 | . 710 125 . . Cannons . | . . . . . Explosions . | . . . . . Melee . | . . . . . Ramming 39 | . 24 15 . . Kinetic 387 | . 262 125 . . Thermal 448 | . 448 . . . Explosive . | . . . . . Electromagnetic . | . . . . . Impact . | . . . . . Slashing . | . . . . . Piercing . | . . . . . Highest Corruption . | . . . . . Average Corruption . | . . . . . Corruption Purged . | . . . . . Corruption Blocked . | . . . . . Overload Shots . | . . . . . Overflow Damage . | . . . . . Projectiles . | . . . . . Explosions . | . . . . . Melee . | . . . . . Knockbacks . | . . . . . Impact . | . . . . . Kinetic . | . . . . . Secondary . | . . . . . Self-Inflicted Damage . | . . . . . Shots . | . . . . . Rammed . | . . . . . Targets Rammed 9 | . 7 2 . . Kicked 9 | . 7 2 . . Crushed . | . . . . . Highest Temperature 88 | . 88 6 . . Average Temperature 21 | . 22 6 . . Received Heat Transfer 402 | . 372 30 . . Siege Activations . | . . . . . Robots Corrupted . | . . . . . Combat Hostiles . | . . . . . Parts Fried . | . . . . . Impact Corruptions . | . . . . . Robots Melted . | . . . . . Combat Hostiles . | . . . . . Parts Melted 2 | . 2 . . . Heat Transferred 950 | . 950 . . . Parts Sabotaged . | . . . . . Parts Stolen . | . . . . . Parts Stripped . | . . . . . Power Chain Reactions . | . . . . . Alert | -11 -10 -10 -10 -9 ------- Run | Yrd Mat Min Exi Min Peak Influence 275 | . 275 100 . . Initial 45 | . . 45 . . Average 57 | . 89 30 . . Maximum Alert Level 1 | . 1 . . . Low Security (%) 96 | . 93 100 . 100 Level 1 3 | . 6 . . . Level 2 . | . . . . . Level 3 . | . . . . . Level 4 . | . . . . . Level 5 . | . . . . . High Security . | . . . . . Max Security . | . . . . . Squads Dispatched 2 | . 2 . . . Investigation 1 | . 1 . . . Extermination . | . . . . . Reinforcement 1 | . 1 . . . Assault . | . . . . . Garrison . | . . . . . Intercept . | . . . . . Searches Triggered . | . . . . . Construction Impeded . | . . . . . Haulers Reinforced . | . . . . . Active Scanning Responses . | . . . . . Cargo Convoy Interrupts . | . . . . . Stealth | -11 -10 -10 -10 -9 --------- Run | Yrd Mat Min Exi Min Distress Signals 2 | . 2 . . . Communications Jammed . | . . . . . Distress Signals . | . . . . . Times Spotted 32 | . 26 5 . 1 Peak Tracking Total 4 | . 4 3 . . Tactical Retreats 1 | . 1 . . . Traps | -11 -10 -10 -10 -9 ------- Run | Yrd Mat Min Exi Min Traps Triggered 1 | . 1 . . . Indirectly . | . . . . . Trap Hack Attempts . | . . . . . Triggered . | . . . . . Disarmed . | . . . . . Reprogrammed . | . . . . . Reused . | . . . . . Traps Extracted . | . . . . . Installed . | . . . . . Triggered . | . . . . . Machines | -11 -10 -10 -10 -9 ---------- Run | Yrd Mat Min Exi Min Machines Disabled 1 | . . 1 . . Max in Single Turn . | . . . . . Machines Repaired . | . . . . . Machines Dismantled . | . . . . . Machines Sabotaged . | . . . . . Overloaded Fab Kills . | . . . . . Hacking | -11 -10 -10 -10 -9 --------- Run | Yrd Mat Min Exi Min Machines Accessed 6 | . 4 . 1 1 Terminals 4 | . 4 . . . Fabricators . | . . . . . Repair Stations . | . . . . . Recycling Units . | . . . . . Scanalyzers . | . . . . . Garrison Access . | . . . . . Total Hacks 12 | . 10 . 1 1 Successful 5 | . 3 . 1 1 Failed 6 | . 6 . . . Catastrophic 1 | . 1 . . . Database Lockouts 1 | . 1 . . . Manual 11 | . 10 . 1 . Terminals 10 | . 10 . . . Fabricators . | . . . . . Repair Stations . | . . . . . Recycling Units . | . . . . . Scanalyzers . | . . . . . Garrison Access . | . . . . . Terminal Hacks 5 | . 3 . 1 1 Robot Analysis 2 | . 2 . . . Open Door 1 | . . . . 1 Hauler Manifests 1 | . 1 . . . Derelict Proto ID Bank 1 | . . . 1 . Fabricator Hacks . | . . . . . Repair Station Hacks . | . . . . . Recycling Unit Hacks . | . . . . . Scanalyzer . | . . . . . Garrison Access Hacks . | . . . . . Unauthorized Hacks . | . . . . . Terminals . | . . . . . Fabricators . | . . . . . Repair Stations . | . . . . . Recycling Units . | . . . . . Scanalyzers . | . . . . . Garrison Access . | . . . . . Data Cores Recovered . | . . . . . Used . | . . . . . Hacking Detections 4 | . 4 . . . Full Trace Events . | . . . . . Feedback Events . | . . . . . Feedback Blocked . | . . . . . Robot Schematics Acquired . | . . . . . Robots Built . | . . . . . Authchips . | . . . . . Time . | . . . . . Total Robot Build Rating . | . . . . . Part Schematics Acquired . | . . . . . Parts Built . | . . . . . Authchips . | . . . . . Time . | . . . . . Total Part Build Rating . | . . . . . Parts Repaired . | . . . . . Time . | . . . . . Parts Recycled . | . . . . . Recycled Matter . | . . . . . Retrieved Matter . | . . . . . Retrieved Components . | . . . . . Parts Scanalyzed . | . . . . . Part Schematics Acquired . | . . . . . Parts Damaged . | . . . . . Bothacking | -11 -10 -10 -10 -9 ------------ Run | Yrd Mat Min Exi Min Used RIF Installer . | . . . . . Robots Hacked . | . . . . . Non-combat . | . . . . . Combat . | . . . . . Robot Hacks Applied . | . . . . . Relay Couplers Released . | . . . . . Fabnet Peak Effective % . | . . . . . Robots Rewired . | . . . . . Allies Hacked . | . . . . . Hacks Repelled . | . . . . . Allies | -11 -10 -10 -10 -9 -------- Run | Yrd Mat Min Exi Min Total Allies 5 | . . 5 . . Largest Group 3 | . . 3 3 3 Highest-Rated Group 42 | . . 42 40 40 Highest-Rated Ally 31 | . . 31 16 16 Total Orders . | . . . . . Ally Attacks 9 | . . 4 . 5 Total Damage 60 | . . 20 . 40 Kills . | . . . . . Allies Corrupted . | . . . . . Allies Melted . | . . . . . Intel | -11 -10 -10 -10 -9 ------- Run | Yrd Mat Min Exi Min Robot Analysis Total 2 | . 2 . . . Derelict Logs Recovered 2 | . . 2 . . Drone Launches . | . . . . . Drone Recoveries . | . . . . . Exploration | -11 -10 -10 -10 -9 ------------- Run | Yrd Mat Min Exi Min Turns Passed 2999 | . 1237 1141 458 163 Spaces Moved 1468 | 1 558 601 228 80 Core . | . . . . . Treads . | . . . . . Legs 1468 | 1 558 601 228 80 Wheels . | . . . . . Hover . | . . . . . Flight . | . . . . . Fastest Speed 120 | 120 120 130 200 200 Average Speed 187 | 120 188 180 200 200 Slowest Speed 260 | 120 260 200 200 200 Overloaded Moves . | . . . . . Propulsion Burnouts . | . . . . . Robots Hopped . | . . . . . Cave-ins Triggered . | . . . . . Exploration Rate (%) 56 | 2 88 98 62 34 Regions Visited 4 Branch Regions 3 Pre-discovered Areas 1 | . . 1 . . Known Exits Taken . | . . . . . Unknown Exits Taken 4 | 1 1 1 1 . Scrap Searched 2 | . . 1 . 1 Spaces Dug . | . . . . . Terrain Destroyed . | . . . . . Melee . | . . . . . Projectile . | . . . . . AOE . | . . . . . Terrain Rammed . | . . . . . Walls Destroyed . | . . . . . Machines Disabled . | . . . . . Actions | -11 -10 -10 -10 -9 --------- Run | Yrd Mat Min Exi Min Total 1590 | . 640 635 231 84 Wait 25 | . 13 10 . 2 Move 1464 | . 557 600 227 80 Hop . | . . . . . Pick Up 10 | . 2 2 4 2 Fast Attach 4 | . 3 1 . . Attach 4 | . 3 1 . . Detach 1 | . 1 . . . Swap 5 | . 1 4 . . Drop . | . . . . . Fire 68 | . 53 15 . . Melee . | . . . . . Ram . | . . . . . Kick 9 | . 7 2 . . Crush . | . . . . . Escape Stasis . | . . . . . Rewire . | . . . . . Trap . | . . . . . Miscellaneous . | . . . . . Route ------- -11/Scrapyard -10/Materials (discovered 5 exits: [*Mat x3] / [*Min x2]) -10/Mines (discovered 4 exits: [*Mat x2] / *Exi / Sub) -10/Exiles -9/Mines (discovered 1 exit: [*Mat]) History --------- Turn | Location | Event 1 | -11/Scrapyard | Discovered new exit (range 0) 1 | -11/Scrapyard | Entered Materials 67 | -10/Materials | Discovered new exit (range 16) 233 | -10/Materials | Discovered new exit (range 15) 309 | -10/Materials | Build established: Mutant 468 | -10/Materials | Discovered new exit (range 6) 557 | -10/Materials | Discovered new exit (range 9) 808 | -10/Materials | Central database locked down 820 | -10/Materials | Discovered new exit (range 4) 967 | -10/Materials | Core integrity fell below 50% 1006 | -10/Materials | Lost 3 parts (2n1w) 1238 | -10/Materials | Entered Mines 1243 | -10/Mines | Core integrity fell below 20% 1247 | -10/Mines | Met a Derelict bent on vengeance 1340 | -10/Mines | Discovered new exit (range 16) 1662 | -10/Mines | Discovered new exit (range 13) 1670 | -10/Mines | Assisted by bots powering up and referring to "LRC-V3" 1823 | -10/Mines | Learned location of Zion (-6) 1975 | -10/Mines | Deemed a non-threat by the Exiles lab entrance 1975 | -10/Mines | Discovered new exit (range 5) 2199 | -10/Mines | Identified exit to Subcaves 2379 | -10/Mines | Entered Exiles 2379 | -10/Exiles | Accompanied by 3 allies 2427 | -10/Exiles | Met 8R-AWN 2463 | -10/Exiles | Met EX-HEX 2517 | -10/Exiles | Met EX-BIN 2545 | -10/Exiles | Aligned with FarCom system 2547 | -10/Exiles | Given EX-Vault access code 2601 | -10/Exiles | Opened EX-Vault 2611 | -10/Exiles | Found Prototype Ballistic Gun 2620 | -10/Exiles | Identified XL Autogun Array 2622 | -10/Exiles | Found Latent Energy Streamer 2627 | -10/Exiles | Found Potential Leg 2630 | -10/Exiles | Found Potential Leg 2671 | -10/Exiles | Warned to stay clear of 0b10 Research branches 2686 | -10/Exiles | Exiles lab attacked by MAIN.C 2813 | -10/Exiles | Discovered new exit (range 12) 2837 | -10/Exiles | Stole three prototypes: Potential Leg, Latent Energy Streamer, XL Autogun Array 2837 | -10/Exiles | Entered Mines 2837 | -9/Mines | Accompanied by 3 allies 2938 | -9/Mines | Discovered new exit (range 9) 2965 | -9/Mines | Met a Derelict who couldn't figure out how to use a Trap Extractor 3000 | -9/Mines | Destroyed by S-10 Pest with Light Assault Rifle Last Messages --------------- 02889_ Acquired Imp. Light Cannon. 02938_ EXIT=FOUND 02964_ Connecting with SHOP.Sys... 02964_ Current location identified: Mines >>Open Door Sealed Doors opened. 02965_ Z3-756(g): "So I found this thing but I have no idea how to use it. And who the hell trapped this place to begin with?!" 02965_ Z3-756(g): "I give up! Here you try, I'm outta here before something nasty happens..." 02965_ Tosses Imp. Trap Extractor to the ground. 02965_ Z3-756(g) triggered Explosive Trap. 02965_ An explosion rips through the floor. 02965_ Machine disabled. 02976_ Acquired Spear. 02979_ U-05 Engineer lays Concrete. 02981_ U-05 Engineer builds a Wall. 02985_ U-05 Engineer lays Concrete. 02993_ U-05 Engineer builds a Wall. 02998_ U-05 Engineer lays Concrete. Map ----- +----------------------------------------------------+ | ??????????????????????????????##???????## #### | | ????????????????????????????????????????## ## | | ????????????????????????????????????????## | | ????????????????????????????????????????# | | ???????????????????????????????????????## | | ??????????????????????????????????????## !% | | ???????????????????????? ??????????#### [ | | ???????????????????????? #????????## | | ???????????????????????? #????????# | | ???????????????????????# #????????# | | ??????????????????????? #????????# | | ??????????????????????? #????????## | | ??????????????????????# #????????## | | ???????????????????#### #???????## ## | | ??????????????????## #??????## #### | | ?????????????###??# #??????# ##??## | | ?????????????# #### #??????## ##????## ## | | ????????????## # #?????## #??????## ##? | | ????????????# |! # # ##????# #???????####?? | | ????????????#" !! # < ###### ##????????????? | | ????????????#"! u # s ##?????????????? | | ????????????#"!]!#X g s ##??????????????? | | ????????????##""## gz ###### #???????????????? | | ?????????????##### ##???# #??????????????? | | ?????????????????# ##??# #?????????????? | | ?????????????????## @#??# #?????????????? | | ??????????????????## s#??# ##?????????????? | | ???????????????????# ? ###??????????????? | | ??????????????????# ##### #????????????????? | | ?????????????????# #???# ????????????????? | | ????????????????# ## #???# #????????????????? | | ????????????????# ## #???# #????????????????? | | ????????????????# #???# #????????????????? | | ????????????????## ### ???? ????????????????? | | ?????????????????###??# ????###????????????????? | | ?????????????????????? ??????????????????????? | | ?????????????????????? ???????????????????????? | | ?????????????????????? ??????????????????????? | | ?????????????????????? ???????????????????????? | | ????????????????????? ???????????????????????? | | ?????????????????????? ???????????????????????? | | ?????????????????????????????????????????????????? | | ?????????????????????????????????????????????????? | | ?????????????????????????????????????????????????? | | ?????????????????????????????????????????????????? | | ?????????????????????????????????????????????????? | | ?????????????????????????????????????????????????? | | ?????????????????????????????????????????????????? | | ?????????????????????????????????????????????????? | | | +----------------------------------------------------+ Best States ------------- Heat Dissipation 35 Energy Generation 10 Energy Capacity 250 Matter Stores 300 Matter Capacity 300 Sight Range 16 Terrain Scan Density 10 Armor Coverage 150 Evasion (%) 55 Item Schematics ----------------- None Robot Schematics ------------------ None Fabricated ------------ Nothing Alien Tech Used ----------------- None Achievements -------------- None Challenges ------------ None Game ------ Seed FieldTerrabombGreatsword Manual? 0 Play Time 00:07:54 Cumulative 306.8 hours Start 2024.09.04 @ 15:38:22 End 2024.09.04 @ 15:45:41 Sessions 1 Manual Loads 0 Difficulty Rogue Special Mode None Game No. 381 Rogue 381 Adventurer 0 Explorer 0 Win Type - Total 19 Types 9/1/5/1/1/0/0/1/1 Lore% 81 Gallery% 81 Achievement% 74 Wizard Run 0 Options --------- Layout 0 ASCII 0 Keyboard 0 Movement Numpad Keybinds 0 Fullscreen 1 Font 18/SmallcapsGlow Map View 76x50 Zoom Use 0% Tactical HUD 1 Map Filters NONE Filters NONE Steam 1 RUN: 491b2d3b-77fe-44c5-9ed3-6fb1fa54c172